fUST/lending_fUST_20250517
["ID","MTS","AMOUNT","RATE_DAILY","PERIOD"]
[361324192,1747471834222,-151.0,0.00014973,2]
[361324193,1747471834234,-68096.44,0.0001499,3]
[361324194,1747471834244,-151.0,0.0001499,2]
[361324195,1747471834254,-230.682822,0.0001499,2]
[361324196,1747471834263,-424.641069,0.0001499,2]
[361324197,1747471834274,-424.641069,0.0001499,2]
[361324198,1747471834285,-151.0,0.0001499,2]
[361324199,1747471834295,-151.0,0.00014999,2]
[361324200,1747471834306,-151.0,0.00014999,2]
[361324201,1747471834315,-1042.833473,0.00014999,2]
[361324202,1747471834325,-1042.833473,0.00014999,2]
[361324203,1747471834335,-151.0,0.00014999,2]
[361324204,1747471834345,-79871.20278929,0.00015,5]
[361324215,1747471840051,-300.0,0.00013697,2]
[361324216,1747471840062,-2836.849885,0.00015,5]
[361324217,1747471840235,-516.20187413,0.00015,5]
[361324263,1747471843340,-17163.2007314,0.00015,5]
[361324264,1747471843497,-400.62765324,0.00015,5]
[361324266,1747471843511,-708.104,0.00015,5]
[361324516,1747471845901,-500.0,0.00014125,2]
[361324518,1747471845911,-500.0,0.00014125,2]
[361324520,1747471845920,-5274.90394766,0.00015,5]
[361324903,1747471917546,6227.9536984,0.00027397,120]
[361324904,1747471918492,646.288507,0.00027397,120]
[361324911,1747472929749,2988.0,0.00026054,120]
[361324934,1747473031944,-1379.95105911,0.00012672,2]
[361324936,1747473031997,-3620.04894089,0.00012672,2]
[361324937,1747473032007,-258.35387957,0.000128,2]
[361324938,1747473032019,-3734.64612043,0.000128,2]
[361324939,1747473032028,-300.0,0.00013414,2]
[361324940,1747473032036,-22205.03962315,0.00013415,2]
[361324941,1747473032048,-653.58100193,0.00013415,2]
[361324942,1747473032060,-1073.36140284,0.00013415,2]
[361324943,1747473032105,-268.08524209,0.00013415,2]
[361324944,1747473032114,-105.96841842,0.00013416,2]
[361324950,1747473037998,-39865.24148497,0.00013416,2]
[361324952,1747473038010,-3010.88555315,0.00013416,2]
[361325446,1747473054284,484.71638,0.00027397,120]
[361325447,1747473309918,2159.9114491,0.00026049,30]
[361325448,1747473655611,503.90045431,0.00027397,120]
[361325450,1747474002284,992.0,0.00027,120]
[361325451,1747474013735,1000.0,0.00027,120]
[361325452,1747474028167,10000.0,0.00027397,120]
[361325495,1747474184334,363.537285,0.00027397,120]
[361325510,1747474232224,-466.53666222,0.00012505,2]
[361325511,1747474232236,-4533.46333778,0.00012505,2]
[361325513,1747474232245,-649.57186558,0.00013016,2]
[361325515,1747474232255,-2416.71261091,0.00013598,2]
[361325517,1747474232264,-300.0,0.00013696,2]
[361325519,1747474232273,-500.0,0.00013697,2]
[361325520,1747474232282,-500.0,0.00013697,2]
[361325521,1747474232292,-417.01287872,0.00013697,2]
[361325522,1747474232301,-500.0,0.00013697,2]
[361325523,1747474232309,-164.9281067,0.00013697,2]
[361325524,1747474232318,-500.0,0.00013697,2]
[361325525,1747474232328,-500.0,0.00013697,2]
[361325526,1747474232337,-500.0,0.00013697,2]
[361325528,1747474232346,-500.0,0.00013697,2]
[361325530,1747474232355,-500.0,0.00013697,2]
[361325532,1747474232365,-500.0,0.00013697,2]
[361325534,1747474232374,-497.29045021,0.00013698,2]
[361325536,1747474232383,-400.84740032,0.00013698,2]
[361325538,1747474232393,-452.36217238,0.00013698,2]
[361325539,1747474232402,-450.0,0.00013698,2]
[361325540,1747474232412,-450.0,0.00013698,2]
[361325541,1747474232421,-458.31260949,0.00013698,2]
[361325542,1747474232430,-401.70929674,0.00013698,2]
[361325543,1747474232440,-458.74134385,0.00013698,2]
[361325544,1747474232449,-455.68486314,0.00013698,2]
[361325545,1747474232459,-452.12119161,0.00013698,2]
[361325546,1747474232468,-450.0,0.00013698,2]
[361325547,1747474232477,-352.89333335,0.00013698,2]
[361325548,1747474232486,-199.29226296,0.00013698,2]
[361325549,1747474232495,-125.99811335,0.00013698,2]
[361325550,1747474232508,-324.00188665,0.00013698,2]
[361325551,1747474232517,-564.57,0.00013698,2]
[361325552,1747474232526,-450.0,0.00013698,2]
[361325553,1747474232536,-450.0,0.00013698,2]
[361325554,1747474232545,-450.0,0.00013698,2]
[361325555,1747474232554,-450.0,0.00013698,2]
[361325556,1747474232563,-450.0,0.00013698,2]
[361325557,1747474232572,-257.4891601,0.00013698,2]
[361325558,1747474232588,-192.5108399,0.00013698,2]
[361325559,1747474232597,-274.58846009,0.00013698,2]
[361325560,1747474232609,-175.41153991,0.00013698,2]
[361325561,1747474232618,-385.60792327,0.00013698,2]
[361325562,1747474236418,700.0,0.00027397,120]
[361325577,1747474238080,-146.03315792,0.00013698,2]
[361325578,1747474238090,-450.0,0.00013698,2]
[361325579,1747474238099,-450.0,0.00013698,2]
[361325580,1747474238108,-114.40875293,0.00013698,2]
[361325581,1747474238119,-335.59124707,0.00013698,2]
[361325582,1747474238128,-450.0,0.00013698,2]
[361325583,1747474238137,-277.74924205,0.00013698,2]
[361325584,1747474238148,-172.25075795,0.00013698,2]
[361325585,1747474238158,-422.12,0.00013698,2]
[361325586,1747474238167,-450.0,0.00013698,2]
[361325587,1747474238176,-450.0,0.00013698,2]
[361325588,1747474238185,-450.0,0.00013698,2]
[361325589,1747474238194,-450.0,0.00013698,2]
[361325590,1747474238203,-453.95757708,0.00013698,2]
[361325591,1747474238213,-486.95,0.00013698,2]
[361325592,1747474238221,-450.0,0.00013698,2]
[361325593,1747474238230,-450.0,0.00013698,2]
[361325594,1747474238239,-450.0,0.00013698,2]
[361325595,1747474238248,-450.0,0.00013698,2]
[361325596,1747474238258,-450.0,0.00013698,2]
[361325597,1747474238267,-450.0,0.00013698,2]
[361325598,1747474238276,-345.95722228,0.00013698,2]
[361325599,1747474238288,-104.04277772,0.00013698,2]
[361325600,1747474238297,-450.0,0.00013698,2]
[361325601,1747474238307,-450.0,0.00013698,2]
[361325602,1747474238317,-1005.21298019,0.00013698,2]
[361325603,1747474238326,-358.62701687,0.00013698,2]
[361325604,1747474238337,-43.00061696,0.00013698,2]
[361325605,1747474238346,-450.0,0.00013698,2]
[361325606,1747474238355,-270.49589739,0.00013698,2]
[361325607,1747474238364,-455.09761898,0.00013698,2]
[361325608,1747474238374,-452.4379009,0.00013698,2]
[361325609,1747474238383,-172.18467111,0.00013698,2]
[361325616,1747474240434,-412.67532889,0.00013698,2]
[361325617,1747474240444,-100.24875855,0.00013698,2]
[361325621,1747474243332,-349.75124145,0.00013698,2]
[361325623,1747474243342,-453.70466128,0.00013698,2]
[361325624,1747474243351,-450.0,0.00013698,2]
[361325625,1747474243362,-450.0,0.00013698,2]
[361325626,1747474243371,-401.14467835,0.00013698,2]
[361325627,1747474243381,-401.47213439,0.00013698,2]
[361325628,1747474243390,-450.0,0.00013698,2]
[361325629,1747474243400,-450.0,0.00013698,2]
[361325631,1747474243410,-450.0,0.00013698,2]
[361325633,1747474243419,-400.0,0.00013698,2]
[361325634,1747474243428,-545.50483274,0.00013698,2]
[361325636,1747474243437,-450.0,0.00013698,2]
[361325637,1747474243447,-450.0,0.00013698,2]
[361325638,1747474243456,-450.0,0.00013698,2]
[361325639,1747474243465,-450.0,0.00013698,2]
[361325640,1747474243475,-473.86,0.00013698,2]
[361325641,1747474243483,-450.0,0.00013698,2]
[361325642,1747474243492,-450.0,0.00013698,2]
[361325644,1747474243502,-450.0,0.00013698,2]
[361325645,1747474243511,-450.0,0.00013698,2]
[361325646,1747474243520,-450.0,0.00013698,2]
[361325647,1747474243529,-450.0,0.00013698,2]
[361325648,1747474243539,-349.091279,0.00013699,2]
[361325650,1747474243548,-233.301695,0.00013699,2]
[361325652,1747474243558,-151.0,0.00013699,2]
[361325654,1747474243567,-151.0,0.00013699,2]
[361325655,1747474243576,-169.856428,0.00013699,2]
[361325656,1747474243589,-169.856428,0.00013699,2]
[361325657,1747474243598,-450.0,0.00013835,2]
[361325658,1747474243607,-450.0,0.00013835,2]
[361325659,1747474243616,-450.0,0.00013835,2]
[361325660,1747474243627,-450.0,0.00013835,2]
[361325661,1747474243636,-584.86,0.00013835,2]
[361325662,1747474243645,-450.0,0.00013835,2]
[361325663,1747474243655,-450.0,0.00013835,2]
[361325664,1747474243665,-158.0438358,0.000139,2]
[361325665,1747474243674,-4022.52111615,0.000139,2]
[361325666,1747474243683,-450.0,0.00013972,2]
[361325667,1747474243693,-545.22,0.00013972,2]
[361325668,1747474243702,-450.0,0.00013972,2]
[361325669,1747474243712,-584.86,0.00013972,2]
[361325670,1747474243722,-450.0,0.00013972,2]
[361325671,1747474243731,-450.0,0.00013972,2]
[361325672,1747474243740,-160.0,0.00013972,2]
[361325673,1747474243749,-998.40506679,0.00013983,2]
[361325674,1747474243758,-527.96884396,0.00013989,3]
[361325675,1747474243768,-5741.02654095,0.00013989,2]
[361325676,1747474243777,-10947.67886936,0.00013989,2]
[361325677,1747474243790,-3224.72410272,0.00013989,2]
[361325678,1747474243803,-7472.76169074,0.00013989,2]
[361325679,1747474243813,-500.0,0.00013999,2]
[361325680,1747474243822,-500.0,0.00013999,2]
[361325681,1747474243831,-500.0,0.00013999,2]
[361325682,1747474243840,-500.0,0.00013999,2]
[361325683,1747474243850,-500.0,0.00013999,2]
[361325684,1747474243860,-500.0,0.00013999,2]
[361325685,1747474243870,-500.0,0.00013999,2]
[361325686,1747474243879,-500.0,0.00013999,2]
[361325687,1747474243888,-500.0,0.00013999,2]
[361325688,1747474243898,-500.0,0.00013999,2]
[361325689,1747474243907,-500.0,0.00013999,2]
[361325690,1747474243915,-500.0,0.00013999,2]
[361325691,1747474243925,-500.0,0.00013999,2]
[361325692,1747474243934,-500.0,0.00013999,2]
[361325693,1747474243943,-500.0,0.00013999,2]
[361325694,1747474243952,-500.0,0.00013999,2]
[361325695,1747474243961,-500.0,0.00013999,2]
[361325696,1747474243970,-556.55102248,0.00013999,2]
[361325697,1747474243979,-500.0,0.00013999,2]
[361325698,1747474243988,-500.0,0.00013999,2]
[361325699,1747474243998,-500.0,0.00013999,2]
[361325700,1747474244007,-190.63562024,0.00013999,2]
[361325701,1747474244017,-569.5668793,0.00014,2]
[361325702,1747474244026,-158.0438358,0.00014,2]
[361325703,1747474244035,-158.0438358,0.00014,2]
[361325704,1747474244045,-569.5668793,0.00014,2]
[361325705,1747474244055,-158.0438358,0.00014,2]
[361325706,1747474244064,-569.5668793,0.00014,2]
[361325707,1747474244073,-151.0,0.00014,2]
[361325708,1747474244082,-73785.12421485,0.00014,2]
[361325709,1747474244094,-7251.3114487,0.00014,2]
[361325718,1747474440457,5000.685,0.00027397,120]
[361325721,1747474850591,5000.0,0.00027397,120]
[361325722,1747474881643,999.0,0.00027397,120]
[361325724,1747474963867,155.00086777,0.00026161,30]
[361325725,1747475139394,845.79168629,0.00027397,120]
[361325726,1747475178715,1836.37705869,0.00026161,30]
[361325759,1747475387757,151.0,0.00012,2]
[361325787,1747475432410,-5000.0,0.00013424,2]
[361325788,1747475432420,-300.0,0.00013697,2]
[361325789,1747475432429,-241.0,0.00013697,2]
[361325790,1747475432439,-450.0,0.00013698,2]
[361325791,1747475432448,-450.0,0.00013698,2]
[361325792,1747475432457,-450.0,0.00013698,2]
[361325793,1747475432467,-450.0,0.00013698,2]
[361325794,1747475432476,-450.0,0.00013698,2]
[361325795,1747475432491,-401.14467835,0.00013698,2]
[361325796,1747475432503,-401.47213439,0.00013698,2]
[361325797,1747475432512,-456.33518537,0.00013698,2]
[361325798,1747475432523,-450.0,0.00013698,2]
[361325799,1747475432532,-458.18906913,0.00013698,2]
[361325800,1747475432543,-450.0,0.00013698,2]
[361325801,1747475432552,-400.0,0.00013698,2]
[361325802,1747475432562,-450.0,0.00013698,2]
[361325803,1747475432571,-450.0,0.00013698,2]
[361325804,1747475432581,-450.0,0.00013698,2]
[361325805,1747475432591,-450.0,0.00013698,2]
[361325806,1747475432601,-560.49,0.00013698,2]
[361325807,1747475432610,-450.0,0.00013698,2]
[361325808,1747475432621,-473.86,0.00013698,2]
[361325809,1747475432631,-450.0,0.00013698,2]
[361325810,1747475432641,-450.0,0.00013698,2]
[361325811,1747475432651,-450.0,0.00013698,2]
[361325812,1747475432661,-450.0,0.00013698,2]
[361325813,1747475432671,-519.83097054,0.00013698,2]
[361325814,1747475432680,-450.0,0.00013698,2]
[361325815,1747475432690,-453.70466128,0.00013698,2]
[361325816,1747475432699,-450.0,0.00013698,2]
[361325817,1747475432708,-462.73047869,0.00013698,2]
[361325818,1747475432718,-450.0,0.00013698,2]
[361325819,1747475432727,-461.60806554,0.00013698,2]
[361325820,1747475432737,-545.50483274,0.00013698,2]
[361325821,1747475432746,-450.0,0.00013698,2]
[361325822,1747475432755,-450.0,0.00013698,2]
[361325823,1747475432765,-450.0,0.00013698,2]
[361325824,1747475432775,-450.0,0.00013698,2]
[361325825,1747475432784,-450.0,0.00013698,2]
[361325826,1747475432793,-450.0,0.00013698,2]
[361325827,1747475432803,-450.0,0.00013698,2]
[361325828,1747475432812,-8350.04624899,0.00013698,2]
[361325829,1747475432825,-694.61306764,0.00013698,2]
[361325830,1747475432834,-349.091279,0.00013699,2]
[361325831,1747475432843,-156.29565336,0.00013699,2]
[361325832,1747475432855,-77.00604164,0.00013699,2]
[361325833,1747475432865,-237.54088519,0.00013735,2]
[361325837,1747475438312,-500.0,0.00013734,2]
[361325839,1747475438331,-500.0,0.00013734,2]
[361325840,1747475438341,-500.0,0.00013734,2]
[361325841,1747475438350,-641.81062925,0.00013734,2]
[361325842,1747475438359,-500.0,0.00013734,2]
[361325843,1747475438368,-500.0,0.00013734,2]
[361325844,1747475438378,-273.58434359,0.00013734,2]
[361325845,1747475438387,-500.0,0.00013734,2]
[361325846,1747475438396,-500.0,0.00013734,2]
[361325847,1747475438405,-500.0,0.00013734,2]
[361325848,1747475438415,-519.64300721,0.00013734,2]
[361325849,1747475438424,-500.0,0.00013734,2]
[361325850,1747475438433,-500.0,0.00013734,2]
[361325851,1747475438443,-500.0,0.00013734,2]
[361325852,1747475438452,-147.83968895,0.00013734,2]
[361325853,1747475438464,-352.16031105,0.00013734,2]
[361325854,1747475438473,-500.0,0.00013734,2]
[361325855,1747475438482,-500.0,0.00013734,2]
[361325856,1747475438492,-500.0,0.00013734,2]
[361325857,1747475438501,-500.0,0.00013734,2]
[361325858,1747475438510,-500.0,0.00013734,2]
[361325859,1747475438519,-500.0,0.00013734,2]
[361325860,1747475438528,-350.69174687,0.00013734,2]
[361325862,1747475438538,-500.0,0.00013734,2]
[361325864,1747475438547,-500.0,0.00013734,2]
[361325866,1747475438557,-500.0,0.00013734,2]
[361325867,1747475438566,-500.0,0.00013734,2]
[361325868,1747475438576,-500.0,0.00013734,2]
[361325870,1747475438585,-500.0,0.00013734,2]
[361325872,1747475438594,-500.0,0.00013734,2]
[361325874,1747475438602,-500.0,0.00013734,2]
[361325875,1747475438611,-500.0,0.00013734,2]
[361325876,1747475438622,-500.0,0.00013734,2]
[361325877,1747475438631,-286.69275552,0.00013734,2]
[361325878,1747475438640,-259.52319045,0.00013734,2]
[361325879,1747475438652,-240.47680955,0.00013734,2]
[361325880,1747475438662,-500.0,0.00013734,2]
[361325881,1747475438670,-500.0,0.00013734,2]
[361325882,1747475438679,-2081.10532777,0.00013735,2]
[361325883,1747475438689,-450.0,0.00013835,2]
[361325884,1747475438698,-450.0,0.00013835,2]
[361325885,1747475438707,-450.0,0.00013835,2]
[361325886,1747475438716,-450.0,0.00013835,2]
[361325887,1747475438726,-560.49,0.00013835,2]
[361325888,1747475438735,-450.0,0.00013835,2]
[361325889,1747475438744,-450.0,0.00013835,2]
[361325890,1747475438753,-545.22,0.00013835,2]
[361325891,1747475438762,-450.0,0.00013835,2]
[361325892,1747475438771,-450.0,0.00013972,2]
[361325893,1747475438779,-450.0,0.00013972,2]
[361325894,1747475438789,-450.0,0.00013972,2]
[361325895,1747475438798,-560.49,0.00013972,2]
[361325896,1747475438807,-450.0,0.00013972,2]
[361325897,1747475438816,-450.0,0.00013972,2]
[361325898,1747475438825,-450.0,0.00013972,2]
[361325899,1747475438834,-998.40506679,0.0001398,2]
[361325900,1747475438844,-500.0,0.00013999,2]
[361325901,1747475438853,-500.0,0.00013999,2]
[361325902,1747475438862,-198.65203024,0.00013999,2]
[361325903,1747475438872,-151.0,0.00014,2]
[361325904,1747475438881,-17031.242132,0.00014,2]
[361325905,1747475438893,-3487.097145,0.00014,2]
[361325906,1747475438904,-4652.89057922,0.00014,2]
[361325907,1747475438916,-528.78757581,0.00014,2]
[361325908,1747475438928,-501.87708855,0.00014,2]
[361325909,1747475438939,-821.1406638,0.00014,2]
[361325919,1747475443954,-56187.85699353,0.00014,2]
[361325920,1747475443964,-157.799755,0.000141,2]
[361325921,1747475443973,-569.5668793,0.000141,2]
[361325922,1747475443982,-569.5668793,0.000141,2]
[361325923,1747475443991,-207.4,0.00014104,2]
[361325924,1747475444000,-450.0,0.00014109,2]
[361325925,1747475444010,-238.9577277,0.00014109,2]
[361325926,1747475444019,-560.49,0.00014109,2]
[361325927,1747475444030,-450.0,0.00014109,2]
[361325928,1747475444039,-450.0,0.00014109,2]
[361325929,1747475444048,-450.0,0.00014109,2]
[361325930,1747475444058,-938.550125,0.00014126,2]
[361325931,1747475444067,-938.550125,0.00014126,2]
[361325932,1747475444076,-154.4573964,0.000142,2]
[361325933,1747475444086,-450.0,0.00014246,2]
[361325934,1747475444096,-560.49,0.00014246,2]
[361325935,1747475444105,-173.74,0.00014246,2]
[361325936,1747475444115,-450.0,0.00014246,2]
[361325937,1747475444124,-406.53124145,0.00014246,2]
[361325938,1747475444142,-450.0,0.00014383,2]
[361325939,1747475444153,-560.49,0.00014383,2]
[361325940,1747475444163,-450.0,0.00014383,2]
[361325941,1747475444172,-307.5005928,0.00014466,2]
[361325942,1747475444182,-153.0,0.00014466,2]
[361325943,1747475444191,-153.0,0.00014466,2]
[361325944,1747475444200,-153.0,0.00014466,2]
[361325945,1747475444210,-151.0,0.00014466,2]
[361325946,1747475444219,-404.0,0.00014474,2]
[361325947,1747475444229,-450.0,0.0001452,2]
[361325948,1747475444239,-560.49,0.0001452,2]
[361325949,1747475444248,-550.24,0.0001452,2]
[361325950,1747475444262,-2318.64621289,0.00014616,2]
[361325951,1747475444272,-450.0,0.00014657,2]
[361325952,1747475444282,-560.49,0.00014657,2]
[361325953,1747475444292,-450.0,0.00014794,2]
[361325954,1747475444301,-560.49,0.00014794,2]
[361325955,1747475444311,-220.579811,0.00014834,2]
[361325956,1747475444321,-4110.08097481,0.000149,2]
[361325957,1747475444331,-938.550125,0.00014917,2]
[361325958,1747475444340,-938.550125,0.00014917,2]
[361325959,1747475444350,-155.8317897,0.00014924,2]
[361325960,1747475444359,-450.0,0.00014931,2]
[361325961,1747475444369,-560.49,0.00014931,2]
[361325962,1747475444380,-500.02275469,0.00014973,2]
[361325963,1747475444390,-500.0,0.00014973,2]
[361325964,1747475444400,-500.0,0.00014973,2]
[361325965,1747475444409,-500.0,0.00014973,2]
[361325966,1747475444419,-500.0,0.00014973,2]
[361325967,1747475444428,-500.0,0.00014973,2]
[361325968,1747475444437,-500.0,0.00014973,2]
[361325969,1747475444447,-500.0,0.00014973,2]
[361325970,1747475444456,-500.0,0.00014973,2]
[361325971,1747475444466,-151.0,0.00014973,2]
[361325972,1747475444475,-2200.0,0.00015,2]
[361325973,1747475444484,-527.96884396,0.00015,3]
[361325974,1747475444494,-6487.70590324,0.00015,2]
[361325975,1747475444503,-1276141.31694955,0.00015,5]
[361325976,1747475444516,-107974.87509732,0.00015,5]
[361325995,1747475791194,272.652963,0.00027397,120]
[361326003,1747476012039,2783156.70135657,0.00026068,30]
[361326007,1747476110212,320.0,0.00027397,120]
[361326008,1747476205873,570.0,0.00027397,120]
[361326016,1747476498021,199791.92121084,0.00027397,120]
[361326017,1747476509237,1003.0,0.00027397,120]
[361326137,1747476632654,-2247.49666288,0.00013158,2]
[361326139,1747476632666,-1597.50615178,0.00013158,2]
[361326226,1747476638616,-1154.99718534,0.00013158,2]
[361326228,1747476638626,-500.0,0.00013425,2]
[361326230,1747476638635,-283.53550991,0.00013425,2]
[361326232,1747476638644,-516.45557459,0.00013698,2]
[361326234,1747476638654,-401.9466866,0.00013698,2]
[361326236,1747476638664,-402.30748333,0.00013698,2]
[361326238,1747476638673,-333.50717155,0.00013698,2]
[361326240,1747476638683,-451.13557135,0.00013698,2]
[361326242,1747476638692,-402.22990957,0.00013698,2]
[361326244,1747476638701,-450.0,0.00013698,2]
[361326246,1747476638710,-402.07098853,0.00013698,2]
[361326248,1747476638720,-422.92146733,0.00013698,2]
[361326250,1747476638729,-562.13611587,0.00013698,2]
[361326252,1747476638738,-438.03680795,0.00013698,2]
[361326254,1747476638749,-61.96319205,0.00013698,2]
[361326256,1747476638762,-402.30118956,0.00013698,2]
[361326257,1747476638771,-342.44385381,0.00013698,2]
[361326259,1747476638780,-340.79836458,0.00013698,2]
[361326260,1747476638794,-63.28513919,0.00013698,2]
[361326261,1747476638805,-235.13328692,0.00013698,2]
[361326262,1747476638813,-310.50375616,0.00013698,2]
[361326264,1747476638824,-95.72610483,0.00013698,2]
[361326265,1747476638835,-450.0,0.00013698,2]
[361326267,1747476638845,-8.31267496,0.00013698,2]
[361326270,1747476638856,-441.68732504,0.00013698,2]
[361326286,1747476639015,-450.0,0.00013698,2]
[361326288,1747476639025,-451.29206435,0.00013698,2]
[361326290,1747476639034,-450.0,0.00013698,2]
[361326292,1747476639043,-547.99,0.00013698,2]
[361326294,1747476639052,-450.0,0.00013698,2]
[361326296,1747476639061,-154.14609574,0.00013698,2]
[361326298,1747476639071,-456.06139766,0.00013698,2]
[361326300,1747476639080,-342.94608231,0.00013698,2]
[361326302,1747476639090,-479.5359127,0.00013698,2]
[361326304,1747476639099,-450.0,0.00013698,2]
[361326306,1747476639108,-249.18266484,0.00013698,2]
[361326503,1747476640980,-200.81733516,0.00013698,2]
[361326505,1747476640990,-450.0,0.00013698,2]
[361326507,1747476641001,-427.54122384,0.00013698,2]
[361326509,1747476641011,-36.30227066,0.00013698,2]
[361326563,1747476643655,-5000.0,0.00013026,2]
[361326564,1747476643665,-413.69772934,0.00013698,2]
[361326565,1747476643675,-450.0,0.00013698,2]
[361326566,1747476643684,-450.0,0.00013698,2]
[361326567,1747476643694,-450.0,0.00013698,2]
[361326568,1747476643703,-450.0,0.00013698,2]
[361326569,1747476643712,-553.39752041,0.00013698,2]
[361326570,1747476643721,-450.0,0.00013698,2]
[361326571,1747476643730,-331.636715,0.00013699,2]
[361326572,1747476643740,-450.0,0.00013835,2]
[361326573,1747476643750,-450.0,0.00013835,2]
[361326574,1747476643763,-160.0,0.0001397,2]
[361326575,1747476643772,-998.40506679,0.00013971,2]
[361326576,1747476643781,-450.0,0.00013972,2]
[361326577,1747476643790,-494.88448823,0.00013972,2]
[361326578,1747476643800,-254.38576183,0.00013995,2]
[361326580,1747476643810,-534.82097902,0.00014108,2]
[361326582,1747476643819,-460.96189126,0.00014108,2]
[361326584,1747476643831,-450.0,0.00014109,2]
[361326585,1747476643842,-306.0,0.000142,2]
[361326587,1747476643851,-306.0,0.000142,2]
[361326588,1747476643860,-153.0,0.000142,2]
[361326589,1747476643869,-153.0,0.000142,2]
[361326590,1747476643878,-153.0,0.000142,2]
[361326591,1747476643887,-450.0,0.00014246,2]
[361326592,1747476643896,-1738.98465972,0.00014366,2]
[361326593,1747476643906,-450.0,0.00014383,2]
[361326594,1747476643915,-578.5316422,0.00014411,2]
[361326595,1747476643924,-153.0,0.00014466,2]
[361326596,1747476643933,-153.0,0.00014466,2]
[361326597,1747476643942,-153.0,0.00014466,2]
[361326598,1747476643951,-153.0,0.00014466,2]
[361326599,1747476643960,-153.0,0.00014466,2]
[361326600,1747476643969,-153.0,0.00014466,2]
[361326601,1747476643979,-153.0,0.00014466,2]
[361326602,1747476643987,-153.0,0.00014466,2]
[361326603,1747476643998,-153.0,0.00014466,2]
[361326604,1747476644007,-153.0,0.00014466,2]
[361326605,1747476644016,-450.0,0.0001452,2]
[361326606,1747476644025,-450.0,0.00014657,2]
[361326607,1747476644035,-172.451662,0.000147,5]
[361326608,1747476644043,-500.0,0.00014793,2]
[361326609,1747476644053,-538.96574965,0.00014793,2]
[361326610,1747476644062,-642.96586172,0.00014793,2]
[361326611,1747476644071,-344.12809738,0.00014793,2]
[361326612,1747476644080,-450.0,0.00014794,2]
[361326613,1747476644090,-3973.07827564,0.000149,2]
[361326614,1747476644099,-5000.0,0.00014914,2]
[361326615,1747476644109,-155.8317897,0.00014924,2]
[361326616,1747476644119,-176.557,0.00014924,2]
[361326617,1747476644128,-450.0,0.00014931,2]
[361326618,1747476644138,-500.0,0.00014973,2]
[361326619,1747476644147,-500.0,0.00014973,2]
[361326620,1747476644157,-500.0,0.00014973,2]
[361326621,1747476644166,-500.0,0.00014973,2]
[361326622,1747476644176,-500.0,0.00014973,2]
[361326623,1747476644186,-500.0,0.00014973,2]
[361326624,1747476644195,-500.0,0.00014973,2]
[361326625,1747476644204,-500.0,0.00014999,2]
[361326626,1747476644214,-500.0,0.00014999,2]
[361326627,1747476644222,-500.0,0.00014999,2]
[361326628,1747476644231,-444.92804805,0.00014999,2]
[361326629,1747476644241,-500.0,0.00014999,2]
[361326630,1747476644250,-500.0,0.00014999,2]
[361326631,1747476644259,-500.0,0.00014999,2]
[361326632,1747476644268,-500.0,0.00014999,2]
[361326633,1747476644277,-500.0,0.00014999,2]
[361326634,1747476644286,-500.0,0.00014999,2]
[361326635,1747476644295,-500.0,0.00014999,2]
[361326636,1747476644305,-500.0,0.00014999,2]
[361326637,1747476644314,-500.0,0.00014999,2]